bitfinex/quotes_SOLUSD_20251031
["timestamp","ask_amount","ask_price","bid_price","bid_amount"]
[1761939449982,8.21081017,187.87,187.84,0.69]
[1761939450182,9.78882769,187.89,187.84,0.69]
[1761939450386,8.21081017,187.85,187.84,0.69]
[1761939451301,8.21081017,187.88,187.84,0.69]
[1761939451506,5.32311295,187.86,187.84,0.69]
[1761939452188,13.53392312,187.86,187.84,0.69]
[1761939452498,8.21081017,187.85,187.84,0.69]
[1761939453004,5.32311295,187.86,187.84,0.69]
[1761939453184,13.53307319,187.89,187.84,0.69]
[1761939453383,26.83873075,187.89,187.84,0.69]
[1761939454185,5.32226302,187.89,187.85,8.21081017]
[1761939454491,5.32226302,187.89,187.84,0.69]
[1761939454809,39.21992058,187.89,187.84,0.69]
[1761939455117,17.99963786,187.85,187.84,0.69]
[1761939455523,39.21992058,187.89,187.84,0.69]
[1761939455725,8.21081017,187.88,187.84,0.69]
[1761939456212,13.53307319,187.89,187.84,0.69]
[1761939457314,8.21081017,187.88,187.84,0.69]
[1761939457520,5.32282961,187.87,187.84,0.69]
[1761939458013,13.53337021,187.88,187.84,0.69]
[1761939458213,5.32256004,187.88,187.84,0.69]
[1761939458508,13.53337021,187.88,187.84,0.69]
[1761939460809,13.30508159,187.9,187.84,0.69]
[1761939461010,8.21081017,187.86,187.84,0.69]
[1761939461216,5.32142295,187.92,187.84,0.69]
[1761939461517,8.21081017,187.92,187.84,0.83216157]
[1761939461905,8.21081017,187.92,187.87,8.21081017]
[1761939462419,34.80940207,187.98,187.9,8.21081017]
[1761939462420,5.31976431,187.98,187.9,8.21081017]
[1761939462717,3.96840752,187.97,187.88,0.97432314]
[1761939462920,93.33562655,188.09,187.88,16.96792569]
[1761939462921,5.31716913,188.07,187.88,16.96792569]
[1761939463120,8.21081017,187.95,187.9,0.28432314]
[1761939463417,8.21081017,187.96,187.9,8.49513331]
[1761939463609,8.21081017,187.93,187.91,0.69]
[1761939463927,8.21081017,187.92,187.88,0.69]
[1761939464090,8.21081017,187.91,187.88,0.69]
[1761939465612,17.99963786,187.98,187.89,8.21081017]
[1761939465613,9.78882769,187.98,187.89,8.21081017]
[1761939465798,8.21081017,187.95,187.89,8.21081017]
[1761939465988,8.21081017,187.94,187.9,0.69]
[1761939466193,8.21081017,187.93,187.9,0.69]
[1761939467827,8.21081017,187.92,187.9,0.69]
[1761939468522,8.21081017,187.91,187.9,0.69]
[1761939470500,8.21081017,187.93,187.9,0.69]
[1761939470701,8.21081017,187.95,187.9,0.69]
[1761939471218,8.21081017,187.93,187.9,0.69]
[1761939471421,5.41091818,187.93,187.9,0.69]
[1761939473245,5.41091818,187.91,187.88,0.69]
[1761939473406,5.41091818,187.89,187.88,0.69]
[1761939475309,2.12599137,187.89,187.88,0.69]
[1761939478237,2.12599137,187.89,187.83,62.0]
[1761939478442,15.11052424,187.91,187.86,0.67]
[1761939478946,5.32141815,187.92,187.86,0.67]
[1761939479108,2.12599137,187.91,187.86,0.67]
[1761939479310,2.12599137,187.9,187.86,0.67]
[1761939479921,2.12599137,187.89,187.86,0.67]
[1761939480226,15.10803817,188.0,187.86,5.99301268]
[1761939480424,2.12599137,187.95,187.86,5.99301268]
[1761939480632,2.12599137,187.94,187.87,8.31993742]
[1761939480836,9.78882769,187.99,187.89,2.12599137]
[1761939481047,2.12599137,187.96,187.9,21.262]
[1761939481248,9.78882769,187.99,187.9,21.262]
[1761939481446,2.12599137,187.96,187.91,0.67]
[1761939481837,2.12599137,187.96,187.91,5.99156499]
[1761939482034,2.12599137,187.98,187.92,2.79599137]
[1761939482545,2.12599137,187.98,187.93,0.67]
[1761939483442,18.61702127,188.0,187.93,0.67]
[1761939483641,2.12599137,187.96,187.93,0.67]
[1761939484725,29.09596548,188.01,187.93,0.67]
[1761939484726,2.12599137,187.99,187.93,0.67]
[1761939484961,2.12599137,187.99,187.93,2.79599137]
[1761939485341,2.12599137,187.99,187.94,0.67]
[1761939485529,5.31915954,188.0,187.94,0.67]
[1761939485730,6.09831503,187.99,187.94,0.67]
[1761939485932,2.12599137,187.99,187.94,0.67]
[1761939486133,2.12599137,188.0,187.94,2.79599137]
[1761939486326,3.97399773,187.99,187.95,0.67]
[1761939486553,2.12599137,188.0,187.95,0.67]
[1761939487165,2.12599137,187.99,187.95,0.67]
[1761939487959,2.12599137,188.0,187.95,0.67]
[1761939488772,2.12599137,187.97,187.89,9.24457163]
[1761939489065,2.12599137,187.96,187.93,0.67]
[1761939489275,2.12599137,187.95,187.93,0.67]
[1761939489435,2.12599137,187.96,187.93,0.67]
[1761939490556,2.12599137,187.94,187.89,29.55224849]
[1761939490860,2.12599137,187.93,187.9,0.67]
[1761939491163,2.12599137,187.94,187.9,0.67]
[1761939491489,22.71799137,187.98,187.92,2.12599137]
[1761939491637,3.97487736,187.97,187.93,0.67]
[1761939491836,22.71799137,187.98,187.93,0.67]
[1761939492150,6.10079743,187.97,187.93,0.67]
[1761939492355,25.91173489,187.98,187.89,29.55224849]
[1761939492356,20.592,187.93,187.89,8.96024849]
[1761939492532,9.78882769,187.88,187.83,0.2]
[1761939492738,2.12599137,187.84,187.83,0.2]
[1761939492933,9.78882769,187.88,187.83,0.87]
[1761939493134,2.12599137,187.92,187.86,2.12599137]
[1761939493364,3.97613993,187.91,187.87,5.4106182]
[1761939493567,10.73184866,187.93,187.87,5.4106182]
[1761939493873,10.73184866,187.93,187.88,0.67]
[1761939494071,5.4106182,187.93,187.88,0.67]
[1761939494238,10.73189862,187.93,187.88,0.67]
[1761939494441,5.4106182,187.93,187.88,0.67]
[1761939495073,5.4106182,187.94,187.88,0.67]
[1761939495288,5.4106182,187.9,187.87,0.67]
[1761939495457,5.4106182,187.92,187.86,20.592]
[1761939495656,5.4106182,187.92,187.88,0.67]
[1761939497058,5.4106182,187.93,187.88,0.67]
[1761939497256,10.73174919,187.93,187.88,0.67]
[1761939497587,5.4106182,187.91,187.88,0.67]
[1761939499885,5.4106182,187.9,187.85,21.282]
[1761939500179,5.4106182,187.9,187.86,0.69]
[1761939500758,5.3214216,187.92,187.86,0.69]
[1761939501058,10.7320398,187.92,187.86,0.69]
[1761939501763,5.4106182,187.91,187.86,0.69]
[1761939501964,5.4106182,187.9,187.86,0.69]
[1761939504169,5.4106182,187.91,187.86,0.69]
[1761939504373,3.98148937,187.9,187.86,0.69]
[1761939504675,5.4106182,187.94,187.86,11.42368376]
[1761939504868,3.98162544,187.93,187.86,11.42368376]
[1761939505065,3.98162544,187.92,187.87,0.69]
[1761939505270,3.98162544,187.91,187.87,0.69]
[1761939505481,5.4106182,187.94,187.87,6.1006182]
[1761939505685,3.9821194,187.93,187.87,6.1006182]
[1761939505988,3.9821194,187.92,187.88,6.02243384]
[1761939506185,20.592,187.96,187.88,19.3287996]
[1761939506375,3.98201106,187.95,187.9,5.4106182]
[1761939506585,5.4106182,187.96,187.89,0.98432314]
[1761939506768,3.98162363,187.95,187.9,0.7]
[1761939506973,5.4106182,187.96,187.9,0.7]
[1761939507299,3.98162358,187.95,187.9,0.7]
[1761939507469,5.4106182,187.96,187.9,0.7]
[1761939507669,5.4106182,187.96,187.91,5.32169655]
[1761939507972,20.592,187.97,187.9,6.02180618]
[1761939508176,9.39190159,187.96,187.9,6.02180618]
[1761939508391,5.4106182,187.96,187.91,0.7]
[1761939508771,5.4106182,187.97,187.91,0.7]
[1761939508970,3.98116606,187.96,187.91,0.7]
[1761939509166,5.4106182,187.97,187.91,0.7]
[1761939509371,3.9811657,187.96,187.91,0.7]
[1761939509580,5.4106182,187.96,187.91,0.7]
[1761939509786,5.4106182,187.96,187.91,6.02160284]
[1761939510298,5.4106182,187.96,187.92,0.7]
[1761939510976,5.4106182,187.95,187.92,0.7]
[1761939511174,5.4106182,187.96,187.92,0.7]
[1761939511373,5.4106182,187.97,187.92,0.7]
[1761939511694,3.98062339,187.96,187.92,0.7]
[1761939511989,5.4106182,187.97,187.92,0.7]
[1761939512173,3.98047212,187.96,187.92,0.7]
[1761939512375,5.4106182,187.97,187.92,0.7]
[1761939512570,5.4106182,187.95,187.92,0.7]
[1761939512975,5.4106182,187.96,187.92,0.7]
[1761939513171,5.32014326,187.97,187.92,0.7]
[1761939513487,9.39104996,187.96,187.92,0.7]
[1761939513682,5.4106182,187.96,187.92,0.7]
[1761939515209,5.32002755,187.97,187.92,0.7]
[1761939515405,6.10448503,187.96,187.92,0.7]
[1761939515589,2.1243233,187.96,187.92,0.7]
[1761939515774,7.44435085,187.97,187.92,0.7]
[1761939515979,3.98025468,187.96,187.92,0.7]
[1761939516173,13.29787234,188.0,187.92,0.7]
[1761939516376,2.1243233,187.97,187.92,0.7]
[1761939516682,3.98025468,187.96,187.92,0.7]
[1761939516995,2.1243233,187.96,187.92,0.7]
[1761939517300,2.1243233,187.95,187.92,0.7]
[1761939518470,2.1243233,187.96,187.92,0.7]
[1761939518671,7.44470782,187.96,187.92,0.7]
[1761939519099,5.31971486,187.98,187.92,0.7]
[1761939519396,2.1243233,187.96,187.92,0.7]
[1761939519795,2.1243233,187.97,187.92,0.7]
[1761939519996,3.98039058,187.96,187.92,0.7]
[1761939520298,2.1243233,187.97,187.92,0.7]
[1761939520500,3.9805327,187.96,187.92,0.7]
[1761939520678,2.1243233,187.96,187.92,0.7]
[1761939521078,2.1243233,187.93,187.88,0.7]
[1761939521296,2.1243233,187.92,187.88,0.7]
[1761939521877,2.1243233,187.97,187.91,2.1243233]
[1761939522076,3.98134768,187.96,187.92,2.8243233]
[1761939522386,2.1243233,188.0,187.94,2.1243233]
[1761939522584,3.98113157,187.99,187.94,2.1243233]
[1761939522781,3.98113157,187.98,187.95,0.7]
[1761939522982,3.98113157,187.97,187.95,0.7]
[1761939523194,2.1243233,187.99,187.95,0.7]
[1761939523506,3.98113198,187.98,187.95,0.7]
[1761939523801,3.98113198,187.97,187.95,0.7]
[1761939524057,20.592,188.02,187.95,0.7]
[1761939524180,3.98144112,188.01,187.96,2.1243233]
[1761939524381,3.98144112,188.0,187.96,2.1243233]
[1761939524592,3.98144112,187.99,187.96,2.1243233]
[1761939524885,2.1243233,188.0,187.96,0.7]
[1761939525219,3.98081936,187.99,187.96,0.7]
[1761939525435,2.1243233,188.0,187.96,0.7]
[1761939525627,3.98041218,187.99,187.96,0.7]
[1761939525828,2.1243233,188.01,187.96,0.7]
[1761939526018,3.98041152,188.0,187.96,0.7]
[1761939526209,3.98041152,187.99,187.96,0.7]
[1761939526410,2.1243233,188.01,187.96,0.7]
[1761939526637,3.97983003,188.0,187.96,0.7]
[1761939526931,2.1243233,188.01,187.96,0.7]
[1761939527138,3.97979413,188.0,187.96,0.7]
[1761939527439,2.1243233,188.01,187.96,0.7]
[1761939527735,6.10357021,188.0,187.96,0.7]
[1761939527938,2.1243233,188.0,187.96,0.7]
[1761939528228,2.1243233,188.01,187.96,0.7]
[1761939528406,3.97872828,188.0,187.96,0.7]
[1761939528604,2.1243233,188.01,187.96,0.7]
[1761939528833,3.97872792,188.0,187.96,0.7]
[1761939529050,2.1243233,188.01,187.96,0.7]
[1761939529217,3.97872828,188.0,187.96,0.7]
[1761939529531,2.1243233,188.01,187.96,0.7]
[1761939529731,3.97822925,188.0,187.96,0.7]
[1761939529934,2.1243233,188.01,187.96,0.7]
[1761939530137,3.97822961,188.0,187.96,0.7]
[1761939530319,2.1243233,188.01,187.96,0.7]
[1761939530520,6.10219769,188.0,187.96,0.7]
[1761939530836,2.1243233,188.0,187.96,0.7]
[1761939531518,3.31750349,188.0,187.96,0.7]
[1761939533632,3.31750349,188.01,187.96,9.33768563]
[1761939533936,3.97729374,188.0,187.96,6.02018214]
[1761939534122,3.31750349,188.01,187.97,0.7]
[1761939534436,3.97729404,188.0,187.97,0.7]
[1761939534617,3.31750349,188.01,187.97,0.7]
[1761939534817,3.97683863,188.0,187.97,0.7]
[1761939535014,3.31750349,188.01,187.97,0.7]
[1761939535237,3.97683899,188.0,187.97,0.7]
[1761939535435,3.31750349,188.01,187.97,0.7]
[1761939535735,3.31750349,188.0,187.97,0.7]
[1761939535934,3.31750349,187.99,187.97,0.68]
[1761939536437,3.31750349,187.99,187.93,3.60182663]
[1761939536637,3.31750349,187.99,187.95,0.68]
[1761939536849,3.31750349,187.98,187.95,0.68]
[1761939539450,3.31750349,187.99,187.95,0.68]
[1761939540748,0.1,188.1,187.98,3.31750349]
[1761939540957,3.31750349,188.04,187.99,3.31750349]
[1761939541141,3.97735708,188.03,188.02,3.31750349]
[1761939541324,3.31750349,188.07,188.02,3.31750349]
[1761939541663,3.97534708,188.06,188.03,3.99750349]
[1761939541824,3.31750349,188.08,188.03,0.68]
[1761939542026,3.97500962,188.07,188.03,0.68]
[1761939542252,3.31750349,188.07,188.03,0.68]
[1761939542441,3.31750349,188.06,188.0,0.28432314]
[1761939542761,3.31750349,188.03,188.0,0.68]
[1761939542924,3.31750349,188.01,187.98,0.68]
[1761939543122,3.31750349,187.99,187.94,0.68]
[1761939543329,3.31750349,187.95,187.91,7.54153187]
[1761939543535,3.31750349,187.95,187.91,12.86320571]
[1761939543746,3.31750349,187.95,187.92,0.68]
[1761939544069,3.31750349,187.93,187.89,8.96024849]
[1761939544345,3.31750349,187.92,187.9,0.68]
[1761939544730,3.31750349,187.93,187.9,0.68]
[1761939544935,3.31750349,187.95,187.9,3.99750349]
[1761939545346,3.31750349,187.94,187.91,0.68]
[1761939545536,3.31750349,187.95,187.91,0.68]
[1761939546137,5.3197355,187.98,187.92,3.31750349]
[1761939546335,3.97746165,187.97,187.93,3.31750349]
[1761939546540,8.63723899,187.98,187.94,0.68]
[1761939546743,5.31890005,188.01,187.96,3.31750349]
[1761939546947,3.97701956,188.0,187.97,3.99750349]
[1761939547148,3.31750349,188.02,187.98,0.68]
[1761939547458,3.97713894,188.01,187.98,0.68]
[1761939547746,3.31750349,188.06,188.0,3.31750349]
[1761939547950,3.97750334,188.05,188.0,3.31750349]
[1761939548152,3.97750334,188.04,188.01,0.68]
[1761939548453,3.97750334,188.03,188.01,0.68]
[1761939548626,3.31750349,188.05,188.01,0.68]
[1761939548926,3.97836713,188.04,188.01,0.68]
[1761939549130,3.97836713,188.03,188.01,0.68]
[1761939549331,8.63547782,188.05,188.01,0.68]
[1761939549645,3.97922123,188.04,188.01,0.68]
[1761939549852,3.97922123,188.03,188.01,0.68]
[1761939550025,8.63547782,188.05,188.01,0.68]
[1761939550227,3.97922051,188.04,188.01,0.68]
[1761939550450,3.97922051,188.03,188.01,0.68]
[1761939550634,3.97922051,188.02,188.01,0.68]
[1761939551255,3.31750349,188.06,188.01,0.68]
[1761939551256,5.31774399,188.05,188.01,0.68]
[1761939551458,3.97992942,188.04,188.01,0.68]
[1761939551634,3.97992942,188.03,188.01,0.68]
[1761939551955,3.97992942,188.02,188.01,0.68]
[1761939552635,3.31750349,188.06,188.01,3.99750349]
[1761939552953,12.61519667,188.05,188.01,0.68]
[1761939553148,3.9797102,188.04,188.01,0.68]
[1761939553329,3.9797102,188.03,188.02,0.68]
[1761939554072,5.31798298,188.05,188.02,0.68]
[1761939554349,3.41750349,188.1,188.02,0.68]
[1761939554350,5.31665701,188.09,188.03,3.31750349]
[1761939554542,5.31665701,188.09,188.02,0.68]
[1761939554543,3.31750349,188.06,188.02,0.68]
[1761939554724,3.31750349,188.07,188.02,3.99750349]
[1761939554931,3.97802836,188.06,188.02,3.99750349]
[1761939555148,3.31750349,188.06,188.03,0.68]
[1761939555559,8.63474382,188.07,188.03,0.68]
[1761939555749,3.97691851,188.06,188.03,0.68]
[1761939555950,8.63474382,188.07,188.03,0.68]
[1761939556152,3.97691897,188.06,188.03,0.68]
[1761939556351,8.63474382,188.07,188.03,0.68]
[1761939556959,3.97605895,188.06,188.03,0.68]
[1761939557150,3.31750349,188.06,188.03,0.68]
[1761939557352,3.31750349,188.05,188.0,3.31750349]
[1761939557646,3.31750349,188.04,187.99,4.28182663]
[1761939558061,3.31750349,188.04,188.0,0.68]
[1761939558268,3.31750349,188.02,187.98,20.592]
[1761939558568,18.61016317,188.07,187.98,20.592]
[1761939558569,3.31750349,188.04,188.0,0.72]
[1761939558744,3.97621273,188.03,188.0,0.72]
[1761939558945,5.31830027,188.03,188.0,0.72]
[1761939559674,8.63580376,188.03,187.97,0.72]
[1761939559870,8.63580376,188.03,187.98,3.31750349]
[1761939560270,8.63580376,188.03,187.99,0.72]
[1761939562165,13.29433087,188.06,187.99,0.72]
[1761939562374,3.31750349,188.03,187.99,0.72]
[1761939563557,3.31750349,188.04,187.99,4.03750349]
[1761939563750,8.63467262,188.07,188.02,3.31750349]
[1761939563950,3.97712087,188.06,188.02,3.31750349]
[1761939564256,3.31750349,188.09,188.04,3.31750349]
[1761939564565,3.97705075,188.08,188.04,3.31750349]
[1761939564771,3.97705075,188.07,188.05,0.72]
[1761939565077,5.31663823,188.09,188.05,0.72]
[1761939565273,3.97659803,188.08,188.05,0.72]
[1761939565474,5.31663823,188.09,188.05,0.72]
[1761939565675,3.976117,188.08,188.05,4.03750349]
[1761939565857,0.1,188.1,188.07,3.31750349]
[1761939566063,3.97604512,188.09,188.07,3.31750349]
[1761939566265,0.1,188.1,188.08,0.66]
[1761939566476,3.97599052,188.09,188.08,0.66]
[1761939566859,0.1,188.1,188.08,0.66]
[1761939567061,5.41633568,188.1,188.08,0.66]
[1761939567869,0.1,188.1,188.08,0.66]
[1761939568269,5.4163699,188.1,188.08,0.66]
[1761939569583,0.1,188.1,188.08,0.66]
[1761939571474,5.41632361,188.1,188.08,0.66]
[1761939571676,0.1,188.1,188.08,0.66]
[1761939572478,8.73386074,188.1,188.06,0.66]
[1761939572785,8.73386074,188.1,188.05,3.31750349]
[1761939572979,3.31750349,188.09,188.05,0.28432314]
[1761939573183,8.6343507,188.09,188.05,0.94432314]
[1761939573372,3.31750349,188.08,188.05,0.66]
[1761939573572,3.31750349,188.08,188.06,0.66]
[1761939573773,3.31750349,188.08,188.03,4.11966506]
[1761939573976,3.31750349,188.08,188.04,0.66]
[1761939574577,8.6343507,188.09,188.04,0.80216157]
[1761939574786,8.6343507,188.09,188.04,4.11966506]
[1761939575282,0.1,188.1,188.06,3.31750349]
[1761939575765,0.1,188.1,188.07,0.66]
[1761939576289,3.31750349,188.09,188.04,0.14216157]
[1761939576471,3.31750349,188.09,188.04,3.97750349]
[1761939576668,3.31750349,188.08,188.05,0.66]
[1761939577164,8.73387919,188.1,188.05,0.66]
[1761939577790,8.73387919,188.1,188.05,3.97750349]
[1761939578174,8.73387919,188.1,188.06,0.66]
[1761939578377,5.4163757,188.1,188.06,3.97750349]
[1761939578780,5.4163757,188.1,188.07,0.66]
[1761939578973,8.73387919,188.1,188.06,0.66]
[1761939579292,8.73387919,188.1,188.07,0.66]
[1761939580083,5.4163757,188.1,188.07,0.66]
[1761939580394,8.73387919,188.1,188.07,0.66]
[1761939580590,3.31750349,188.09,188.07,0.66]
[1761939580787,3.31750349,188.08,188.05,0.66]
[1761939580984,3.31750349,188.07,188.02,20.592]
[1761939581186,5.31858312,188.02,187.97,0.66]
[1761939581571,5.31834858,188.03,187.98,3.31750349]
[1761939581770,5.31834858,188.03,187.99,3.31750349]
[1761939582206,5.31834858,188.03,188.0,0.66]
[1761939583195,16.61014384,188.08,188.02,3.31750349]
[1761939583373,3.96961752,188.07,188.04,3.31750349]
[1761939583693,3.41750349,188.1,188.02,0.28432314]
[1761939583694,5.31663067,188.09,188.02,0.28432314]
[1761939583892,8.63413416,188.09,188.04,3.31750349]
[1761939584081,8.63413416,188.09,188.05,0.66]
[1761939585106,8.63413416,188.09,188.02,0.28432314]
[1761939585293,3.31750349,188.08,188.03,3.31750349]
[1761939585494,3.31750349,188.08,188.04,0.66]
[1761939585676,8.63413416,188.09,188.04,3.97750349]
[1761939585876,3.97055102,188.08,188.04,3.97750349]
[1761939586076,3.97055102,188.08,188.05,0.66]
[1761939586307,5.31663067,188.09,188.05,3.97750349]
[1761939586517,5.31663067,188.09,188.06,0.66]
[1761939587100,5.31663067,188.09,188.02,0.28432314]
[1761939587101,8.63413416,188.09,188.02,0.28432314]
[1761939587408,8.63413416,188.09,188.04,3.31750349]
[1761939588211,5.31663067,188.09,188.05,0.66]
[1761939588380,21.92564354,188.09,188.05,0.66]
[1761939588574,5.31663067,188.09,188.06,3.31750349]
[1761939589000,5.31663067,188.09,188.07,3.97750349]
[1761939589381,5.31663067,188.09,188.07,0.66]
[1761939591071,8.63413416,188.09,188.04,0.66]
[1761939591271,8.63413416,188.09,188.01,0.66]
[1761939591272,3.31750349,188.07,188.01,0.66]
[1761939591497,3.31750349,188.07,188.02,3.31750349]
[1761939591684,3.31750349,188.07,188.03,0.66]
[1761939593302,5.31745187,188.06,188.03,0.66]
[1761939594004,5.3172103,188.07,188.04,2.12170375]
[1761939594195,20.592,188.03,187.93,0.66]
[1761939594385,2.12170375,187.95,187.9,2.78170375]
[1761939594795,2.12170375,187.95,187.91,0.94432314]
[1761939594993,2.12170375,187.95,187.91,0.66]
[1761939595797,2.12170375,187.95,187.91,0.94432314]
[1761939596103,7.44222347,187.96,187.91,2.78170375]
[1761939596279,7.44222347,187.96,187.92,0.65]
[1761939596476,2.12170375,187.96,187.92,0.79216157]
[1761939596890,2.12170375,187.96,187.92,0.93432314]
[1761939597307,2.12170375,187.96,187.93,0.65]
[1761939597891,2.12170375,187.97,187.93,0.65]
[1761939598986,7.44194905,187.97,187.93,0.65]
[1761939601112,2.12170375,187.96,187.93,0.65]
[1761939601612,5.3202453,187.97,187.93,0.65]
[1761939601808,2.12170375,187.96,187.93,0.65]
[1761939601994,2.12170375,187.96,187.91,0.28432314]
[1761939602193,18.62023998,187.97,187.89,8.96024849]
[1761939602194,2.12170375,187.92,187.89,8.96024849]
[1761939602393,2.12170375,187.91,187.89,8.96024849]
[1761939602596,18.62023998,187.97,187.89,8.96024849]
[1761939602597,2.12170375,187.9,187.89,8.96024849]
[1761939603318,7.44368352,187.9,187.89,8.96024849]
[1761939603818,5.32167901,187.92,187.89,8.96024849]
[1761939603992,2.12170375,187.91,187.89,9.61024849]
[1761939604725,2.12170375,187.91,187.89,8.96024849]
[1761939605497,5.32197977,187.9,187.89,8.96024849]
[1761939606722,2.12170375,187.91,187.89,8.96024849]
[1761939606928,2.12170375,187.91,187.89,9.61024849]
[1761939607422,2.12170375,187.91,187.89,8.96024849]
[1761939607808,5.32141336,187.92,187.89,8.96024849]
[1761939608294,2.12170375,187.91,187.89,8.96024849]
[1761939608800,5.32141336,187.92,187.89,8.96024849]
[1761939608801,2.12170375,187.9,187.89,8.96024849]
[1761939609000,18.62494677,187.92,187.89,8.96024849]
[1761939609316,2.12170375,187.9,187.89,8.96024849]
[1761939609515,18.62494677,187.92,187.89,8.96024849]
[1761939609725,2.12170375,187.9,187.89,8.96024849]
[1761939610107,5.32169655,187.91,187.89,8.96024849]
[1761939610314,7.4434003,187.91,187.89,8.96024849]
[1761939610491,2.12170375,187.9,187.89,8.96024849]
[1761939612200,2.12170375,187.84,187.83,0.2]
[1761939613730,7.44538347,187.84,187.83,0.2]
[1761939615933,5.32309845,187.87,187.83,0.85]
[1761939616227,20.75187624,187.87,187.83,0.2]
[1761939616602,5.32261235,187.88,187.83,0.2]
[1761939616803,20.75068186,187.88,187.83,0.85]
[1761939617003,2.12170375,187.87,187.83,0.2]
[1761939617731,2.12170375,187.92,187.86,2.12170375]
[1761939617929,26.59914346,187.98,187.84,0.65]
[1761939617930,2.12170375,187.94,187.88,2.12170375]
[1761939618242,22.71370375,187.94,187.88,2.12170375]
[1761939618414,2.12170375,187.94,187.88,2.12170375]
[1761939618610,22.71370375,187.94,187.89,2.12170375]
[1761939619153,5.3211302,187.93,187.89,2.83170375]
[1761939619339,5.3211302,187.93,187.89,0.71]
[1761939619520,7.44283395,187.93,187.89,0.71]
[1761939619714,26.5935556,188.02,187.89,0.71]
[1761939619939,26.5935556,188.02,187.91,2.12170375]
[1761939619940,2.12170375,187.97,187.91,2.12170375]
[1761939620511,2.12170375,187.97,187.92,0.71]
[1761939620820,2.12170375,187.96,187.92,0.71]
[1761939621010,5.32056397,187.95,187.92,0.71]
[1761939621406,2.12170375,187.93,187.88,2.83170375]
[1761939621608,2.12170375,187.93,187.89,0.71]
[1761939622129,18.62197391,187.95,187.86,20.73416157]
[1761939622130,2.12170375,187.91,187.86,20.73416157]
[1761939622331,2.12170375,187.89,187.84,2.12170375]
[1761939622522,2.12170375,187.89,187.86,0.71]
[1761939623322,5.3225463,187.88,187.86,0.71]
[1761939623525,10.73588218,187.88,187.86,0.71]
[1761939623814,5.41333588,187.87,187.83,0.91]
[1761939624016,10.73588218,187.88,187.84,0.71]
[1761939625634,5.32169655,187.91,187.87,5.41333588]
[1761939625834,5.41333588,187.96,187.9,5.41333588]
[1761939626031,5.41333588,187.96,187.91,5.41333588]
[1761939626229,5.41333588,187.97,187.92,0.7]
[1761939626435,5.41333588,187.96,187.92,0.7]
[1761939627339,5.32056397,187.95,187.92,0.7]
[1761939628426,10.73311188,187.98,187.92,6.11333588]
[1761939628625,5.41333588,187.97,187.92,6.11333588]
[1761939629142,5.319776,187.98,187.93,0.7]
[1761939629332,5.32028091,187.96,187.93,0.7]
[1761939629641,5.32028091,187.96,187.91,6.11333588]
[1761939629642,10.73361679,187.96,187.91,6.11333588]
[1761939629945,10.73361679,187.96,187.92,0.7]
[1761939631047,10.73361679,187.96,187.9,0.28432314]
[1761939631222,20.592,188.0,187.93,0.7]
[1761939631417,5.41333588,188.0,187.94,5.41333588]
[1761939631655,5.41333588,187.99,187.93,6.39765902]
[1761939631818,5.41333588,187.99,187.93,0.28432314]
[1761939632024,5.41333588,187.95,187.91,21.292]
[1761939632321,18.61611719,188.01,187.91,21.292]
[1761939632322,5.41333588,187.94,187.91,0.7]
[1761939632518,5.41333588,187.93,187.91,0.7]
[1761939632719,20.592,187.99,187.91,0.7]
[1761939632958,5.41333588,187.95,187.91,0.7]
[1761939633652,18.61900201,187.98,187.91,0.7]
[1761939633856,5.41333588,187.95,187.91,0.7]
[1761939634756,18.61900201,187.98,187.91,0.7]
[1761939634927,5.32084707,187.94,187.91,0.7]
[1761939635127,5.41333588,187.99,187.93,5.41333588]
[1761939635348,5.41333588,188.0,187.94,5.41333588]
[1761939635724,5.41333588,188.0,187.95,6.11333588]
[1761939635925,5.41333588,188.01,187.95,6.11333588]
[1761939636153,5.41333588,188.0,187.96,0.7]
[1761939636541,5.41333588,188.01,187.96,0.7]
[1761939636740,3.96559232,188.0,187.97,5.41333588]